Cogmind - Beta 11 X5 @@@ ROGUE MODE // 2021.06.27 @ 12:20:05 Player: Exp. Geonium Core Result: Self-destructed Performance ------------- Evolutions (3) 1500 Regions Visited (6) 1200 Robots Destroyed (0) 0 Value Destroyed (10) 10 Prototype IDs (2) 40 Alien Tech Used (0) 0 Bonus (834) 834 TOTAL SCORE: 3584 Bonus ------- Pacifist 834 Cogmind --------- Core Integrity 422/700 Matter 295/300 Energy 100/100 System Corruption 0% Temperature Cool (0) Movement Core (50) Location -7/Lower Caves Parts ------- > --- POWER (1) -------- (None) > --- PROPULSION (2) --- (None) > --- UTILITY (8) ------ Hacking Suite > --- WEAPON (2) ------- (None) > --- INVENTORY (5) ---- Improved Heavy Laser Advanced Assault Cannon Advanced EMP Blaster Advanced EMP Blaster Improved Datajack Peak State ------------ > --- POWER ------------ (None) > --- PROPULSION ------- Armored Treads Armored Treads > --- UTILITY ---------- Advanced Visual Processing Unit Improved Terrain Scan Processor > --- WEAPON ----------- Improved Heavy Laser > --- INVENTORY -------- Hacking Suite EMP Blaster EMP Blaster [Rating: 18] Favorites ----------- Power None Propulsion Light Treads Treads Light Treads Utility Advanced Visual Processing Unit Processor Advanced Visual Processing Unit Hackware Hacking Suite Weapon Improved Heavy Laser Energy Gun Improved Heavy Laser Launcher Advanced EMP Blaster Build | -11 -10 -9 -8 -8 -7 -7 ------- Run | Scr Mat Mat Mat Sto Fac Low Slots Evolved 6 | . . 2 2 . 2 . Power . | . . . . . . . Propulsion . | . . . . . . . Utility 6 | . . 2 2 . 2 . Weapon . | . . . . . . . Parts Attached 11 | 2 . . 4 4 1 . Power . | . . . . . . . Engine . | . . . . . . . Core . | . . . . . . . Reactor . | . . . . . . . Propulsion 4 | 2 . . 2 . . . Treads 4 | 2 . . 2 . . . Leg . | . . . . . . . Wheel . | . . . . . . . Hover . | . . . . . . . Flight . | . . . . . . . Utility 3 | . . . 2 . 1 . Device . | . . . . . . . Storage . | . . . . . . . Processor 2 | . . . 2 . . . Hackware 1 | . . . . . 1 . Protection . | . . . . . . . Artifact . | . . . . . . . Weapon 4 | . . . . 4 . . Energy Gun 2 | . . . . 2 . . Energy Cannon . | . . . . . . . Ballistic Gun . | . . . . . . . Ballistic Cannon . | . . . . . . . Launcher 2 | . . . . 2 . . Special Weapon . | . . . . . . . Impact Weapon . | . . . . . . . Slashing Weapon . | . . . . . . . Piercing Weapon . | . . . . . . . Special Melee Weapon . | . . . . . . . Unidentified Prototypes 2 | . . . . 2 . . Parts Lost 5 | . . . 2 3 . . Power . | . . . . . . . Propulsion 3 | . . . 2 1 . . Utility 2 | . . . . 2 . . Weapon . | . . . . . . . Highest Loss Streak 3 | . . . 2 3 . . Average Slot Usage (%) 17 | . 28 22 26 21 3 . Treads 12 | . 28 22 15 13 . . Processor 3 | . . . 11 7 . . Naked Turns 94 | . . . . . 94 . Heaviest Build 5 | . . . . 5 . . Greatest Support 40 | 40 3 3 3 3 3 3 Greatest Overweight (x) 1 | . . . . 1 . . Average Overweight (x) . | . . . . . . . Largest Inventory Capacity 5 | 5 5 5 5 5 5 5 Average Capacity 5 | 5 5 5 5 5 5 5 Most Carried 5 | 1 2 2 3 4 5 5 Average Carried 3 | . 1 2 2 3 4 5 Final Capacity 5 | 5 5 5 5 5 5 5 Final Carried 5 | . 2 2 3 4 5 5 Class Distribution -------------------- 100% | Mutant Dominant Class ---------------- Mutant | -10/Materials Mutant | -9/Materials Mutant | -8/Materials Mutant | -8/Storage Mutant | -7/Factory Mutant | -7/Lower Caves Resources | -11 -10 -9 -8 -8 -7 -7 ----------- Run | Scr Mat Mat Mat Sto Fac Low Matter Collected 285 | 121 . . . . 164 . Remotely . | . . . . . . . Salvage Created . | . . . . . . . Parts . | . . . . . . . Haulers Intercepted . | . . . . . . . Recyclers Shooed . | . . . . . . . Parts Field Recycled . | . . . . . . . Retrieved Matter . | . . . . . . . Parts Self-Destructed . | . . . . . . . Prevented . | . . . . . . . Kills | -11 -10 -9 -8 -8 -7 -7 ------- Run | Scr Mat Mat Mat Sto Fac Low Combat Hostiles Destroyed . | . . . . . . . Classes Destroyed . | . . . . . . . Best Kill Streak . | . . . . . . . Combat Bots Only . | . . . . . . . Max Kills in Single Turn . | . . . . . . . Gunslinging . | . . . . . . . Exploded . | . . . . . . . Melee . | . . . . . . . Uniques/NPCs Destroyed . | . . . . . . . Combat | -11 -10 -9 -8 -8 -7 -7 -------- Run | Scr Mat Mat Mat Sto Fac Low Damage Taken 1551 | . 83 261 279 650 278 . Core 537 | . 34 79 68 78 278 . Absorbed by Shields . | . . . . . . . Core Remaining (%) 84 | 100 86 80 . 73 . . Volleys Fired 9 | . . . . 9 . . Largest 1 | . . . . 1 . . Hottest 65 | . . . . 65 . . Shots Fired 9 | . . . . 9 . . Gun 8 | . . . . 8 . . Cannon . | . . . . . . . Launcher 1 | . . . . 1 . . Special . | . . . . . . . Kinetic . | . . . . . . . Thermal 8 | . . . . 8 . . Explosive . | . . . . . . . Electromagnetic 1 | . . . . 1 . . Robot Hit Streak . | . . . . . . . Robot Miss Streak . | . . . . . . . Penetration Max . | . . . . . . . Secondary Targets . | . . . . . . . Shots Hit Robots . | . . . . . . . Core Hits . | . . . . . . . Critical Kills . | . . . . . . . Critical Parts Destroyed . | . . . . . . . Critical Strikes . | . . . . . . . Melee Attacks . | . . . . . . . Impact . | . . . . . . . Slashing . | . . . . . . . Piercing . | . . . . . . . Sneak Attacks . | . . . . . . . Combat Hostiles . | . . . . . . . Follow-up Attacks . | . . . . . . . Damage Inflicted 75 | . . . 8 30 37 . Guns . | . . . . . . . Cannons . | . . . . . . . Explosions 30 | . . . . 30 . . Melee . | . . . . . . . Ramming 45 | . . . 8 . 37 . Kinetic . | . . . . . . . Thermal . | . . . . . . . Explosive . | . . . . . . . Electromagnetic 30 | . . . . 30 . . Impact . | . . . . . . . Slashing . | . . . . . . . Piercing . | . . . . . . . Highest Corruption 6 | . . 2 . 6 . . Average Corruption 4 | . . 2 . 6 . . Corruption Purged . | . . . . . . . Effects 5 | . . 1 . 4 . . Message Errors 2 | . . 1 . 1 . . Matter Fused 2 | . . . . 2 . . Parts Rejected 1 | . . . . 1 . . Overload Shots . | . . . . . . . Overflow Damage . | . . . . . . . Projectiles . | . . . . . . . Explosions . | . . . . . . . Melee . | . . . . . . . Knockbacks . | . . . . . . . Impact . | . . . . . . . Kinetic . | . . . . . . . Secondary . | . . . . . . . Self-Inflicted Damage 41 | . . . 4 19 18 . Shots 1 | . . . . 1 . . Rammed 7 | . . . 2 . 5 . Targets Rammed 7 | . . . 2 . 5 . Kicked . | . . . . . . . Crushed . | . . . . . . . Highest Temperature 53 | . . . . 53 . . Average Temperature 9 | . . . . 9 . . Received Heat Transfer 438 | . 48 84 108 117 81 . Siege Activations . | . . . . . . . Robots Corrupted . | . . . . . . . Combat Hostiles . | . . . . . . . Parts Fried . | . . . . . . . Impact Corruptions . | . . . . . . . Robots Melted . | . . . . . . . Combat Hostiles . | . . . . . . . Parts Melted . | . . . . . . . Heat Transferred . | . . . . . . . Parts Sabotaged . | . . . . . . . Parts Stolen . | . . . . . . . Parts Stripped . | . . . . . . . Power Chain Reactions . | . . . . . . . Missiles Intercepted . | . . . . . . . Alert | -11 -10 -9 -8 -8 -7 -7 ------- Run | Scr Mat Mat Mat Sto Fac Low Peak Influence 255 | . 15 20 108 237 255 . Initial 107 | . . 5 8 45 107 . Average 93 | . 4 7 46 122 174 . Maximum Alert Level 1 | . . . . 1 1 . Low Security (%) 87 | 100 100 100 100 80 76 . Level 1 12 | . . . . 19 23 . Level 2 . | . . . . . . . Level 3 . | . . . . . . . Level 4 . | . . . . . . . Level 5 . | . . . . . . . High Security . | . . . . . . . Max Security . | . . . . . . . Squads Dispatched 7 | . . 2 . 4 1 . Investigation 2 | . . 1 . . 1 . Extermination . | . . . . . . . Reinforcement 5 | . . 1 . 4 . . Assault . | . . . . . . . Garrison . | . . . . . . . Intercept . | . . . . . . . Construction Impeded . | . . . . . . . Haulers Reinforced . | . . . . . . . Cargo Convoy Interrupts . | . . . . . . . Stealth | -11 -10 -9 -8 -8 -7 -7 --------- Run | Scr Mat Mat Mat Sto Fac Low Distress Signals 2 | . . . 1 1 . . Communications Jammed . | . . . . . . . Distress Signals . | . . . . . . . Times Spotted 50 | . 4 10 7 17 9 3 Peak Tracking Total 10 | . 3 10 7 8 5 4 Tactical Retreats 6 | . 1 . . 3 2 . Traps | -11 -10 -9 -8 -8 -7 -7 ------- Run | Scr Mat Mat Mat Sto Fac Low Traps Triggered 5 | . . 2 . 3 . . Indirectly . | . . . . . . . Trap Hack Attempts . | . . . . . . . Triggered . | . . . . . . . Disarmed . | . . . . . . . Reprogrammed . | . . . . . . . Reused . | . . . . . . . Traps Extracted . | . . . . . . . Installed . | . . . . . . . Triggered . | . . . . . . . Machines | -11 -10 -9 -8 -8 -7 -7 ---------- Run | Scr Mat Mat Mat Sto Fac Low Machines Disabled 1 | . . . . 1 . . Max in Single Turn 1 | . . . . 1 . . Machines Sabotaged . | . . . . . . . Garrisons Compromised . | . . . . . . . Overloaded Fab Kills . | . . . . . . . Fab Network Shutdowns . | . . . . . . . Hacking | -11 -10 -9 -8 -8 -7 -7 --------- Run | Scr Mat Mat Mat Sto Fac Low Machines Accessed 4 | . 1 . . 1 2 . Terminals 2 | . 1 . . 1 . . Fabricators . | . . . . . . . Repair Stations . | . . . . . . . Recycling Units . | . . . . . . . Scanalyzers 2 | . . . . . 2 . Garrison Access . | . . . . . . . Total Hacks 12 | . 3 . . 3 6 . Successful 5 | . 1 . . 1 3 . Failed 7 | . 2 . . 2 3 . Catastrophic 3 | . 2 . . 1 . . Database Lockouts . | . . . . . . . Manual 3 | . . . . 3 . . Terminals 6 | . 3 . . 3 . . Fabricators . | . . . . . . . Repair Stations . | . . . . . . . Recycling Units . | . . . . . . . Scanalyzers 6 | . . . . . 6 . Garrison Access . | . . . . . . . Terminal Hacks 1 | . 1 . . . . . Branch Access Points 1 | . 1 . . . . . Fabricator Hacks . | . . . . . . . Repair Station Hacks . | . . . . . . . Recycling Unit Hacks . | . . . . . . . Scanalyzer 3 | . . . . . 3 . Insert Component 2 | . . . . . 2 . Analyze 1 | . . . . . 1 . Garrison Access Hacks . | . . . . . . . Unauthorized Hacks 1 | . . . . 1 . . Terminals 1 | . . . . 1 . . Botnet 1 | . . . . 1 . . Fabricators . | . . . . . . . Repair Stations . | . . . . . . . Recycling Units . | . . . . . . . Scanalyzers . | . . . . . . . Garrison Access . | . . . . . . . Data Cores Recovered . | . . . . . . . Used . | . . . . . . . Hacking Detections 4 | . 1 . . 1 2 . Full Trace Events 2 | . 1 . . . 1 . Feedback Events . | . . . . . . . Feedback Blocked . | . . . . . . . Robot Schematics Acquired . | . . . . . . . Robots Built . | . . . . . . . Matter . | . . . . . . . Time . | . . . . . . . Total Robot Build Rating . | . . . . . . . Part Schematics Acquired 1 | . . . . . 1 . Parts Built . | . . . . . . . Matter . | . . . . . . . Time . | . . . . . . . Total Part Build Rating . | . . . . . . . Parts Repaired . | . . . . . . . Time . | . . . . . . . Parts Recycled . | . . . . . . . Recycled Matter . | . . . . . . . Retrieved Matter . | . . . . . . . Retrieved Components . | . . . . . . . Parts Scanalyzed 1 | . . . . . 1 . Part Schematics Acquired 1 | . . . . . 1 . Parts Damaged . | . . . . . . . Bothacking | -11 -10 -9 -8 -8 -7 -7 ------------ Run | Scr Mat Mat Mat Sto Fac Low Used RIF Installer . | . . . . . . . Robots Hacked . | . . . . . . . Non-combat . | . . . . . . . Combat . | . . . . . . . Robot Hacks Applied . | . . . . . . . Relay Couplers Released . | . . . . . . . Robots Rewired . | . . . . . . . Allies Hacked . | . . . . . . . Hacks Repelled . | . . . . . . . Allies | -11 -10 -9 -8 -8 -7 -7 -------- Run | Scr Mat Mat Mat Sto Fac Low Total Allies . | . . . . . . . Largest Group . | . . . . . . . Highest-Rated Group . | . . . . . . . Highest-Rated Ally . | . . . . . . . Total Orders . | . . . . . . . Ally Attacks . | . . . . . . . Total Damage . | . . . . . . . Kills . | . . . . . . . Allies Corrupted . | . . . . . . . Allies Melted . | . . . . . . . Intel | -11 -10 -9 -8 -8 -7 -7 ------- Run | Scr Mat Mat Mat Sto Fac Low Robot Analysis Total . | . . . . . . . Derelict Logs Recovered . | . . . . . . . Drone Launches . | . . . . . . . Drone Recoveries . | . . . . . . . Exploration | -11 -10 -9 -8 -8 -7 -7 ------------- Run | Scr Mat Mat Mat Sto Fac Low Turns Passed 648 | 39 88 59 83 199 178 2 Spaces Moved 1097 | 28 172 117 134 303 341 2 Core 1076 | 7 172 117 134 303 341 2 Treads 21 | 21 . . . . . . Legs . | . . . . . . . Wheels . | . . . . . . . Hover . | . . . . . . . Flight . | . . . . . . . Fastest Speed 50 | 50 50 50 50 50 50 50 Average Speed 52 | 132 50 50 50 51 50 50 Slowest Speed 160 | 160 50 50 50 100 50 50 Overloaded Moves . | . . . . . . . Propulsion Burnouts . | . . . . . . . Robots Hopped . | . . . . . . . Cave-ins Triggered 1 | . . . . 1 . . Exploration Rate (%) 23 | 4 36 18 26 64 11 2 Regions Visited 6 Branch Regions 2 Pre-discovered Areas . | . . . . . . . Known Exits Taken . | . . . . . . . Unknown Exits Taken 6 | 1 1 1 1 1 1 . Scrap Searched . | . . . . . . . Spaces Dug 7 | . . . . 7 . . Terrain Destroyed 7 | . . . . 7 . . Melee . | . . . . . . . Projectile 7 | . . . . 7 . . AOE . | . . . . . . . Terrain Rammed . | . . . . . . . Walls Destroyed . | . . . . . . . Machines Disabled . | . . . . . . . Actions | -11 -10 -9 -8 -8 -7 -7 --------- Run | Scr Mat Mat Mat Sto Fac Low Total 1154 | 30 173 116 147 338 348 2 Wait 8 | . . . 7 1 . . Move 1092 | 27 171 116 133 302 341 2 Hop . | . . . . . . . Pick Up 7 | 1 2 . 1 1 2 . Fast Attach 7 | 1 . . 4 2 . . Attach 4 | 1 . . . 2 1 . Detach 4 | . . . . 4 . . Swap . | . . . . . . . Drop 2 | . . . . 2 . . Fire 9 | . . . . 9 . . Melee . | . . . . . . . Ram 6 | . . . 2 . 4 . Kick . | . . . . . . . Crush . | . . . . . . . Escape Stasis 15 | . . . . 15 . . Rewire . | . . . . . . . Trap . | . . . . . . . Miscellaneous . | . . . . . . . Route ------- -11/Scrapyard -10/Materials (discovered 3 exits: [*Mat] / *Min x2) -9/Materials -8/Materials -8/Storage -7/Factory -7/Lower Caves History --------- Turn | Location | Event 2 | -11/Scrapyard | Discovered new exit (range 16) 40 | -11/Scrapyard | Entered Materials 43 | -10/Materials | Identified exit to Mines 123 | -10/Materials | Discovered new exit (range 9) 128 | -10/Materials | Entered another Materials area 128 | -9/Materials | Evolved 2 slots: Utility x2 179 | -9/Materials | Discovered new exit (range 16) 187 | -9/Materials | Entered another Materials area 187 | -8/Materials | Evolved 2 slots: Utility x2 257 | -8/Materials | Discovered new exit (range 19) 270 | -8/Materials | Entered Storage 300 | -8/Storage | Build established: Mutant 365 | -8/Storage | Crushed by falling debris 396 | -8/Storage | Lost 3 parts (1n2u) 462 | -8/Storage | Discovered new exit (range 15) 469 | -8/Storage | Entered Factory 469 | -7/Factory | Evolved 2 slots: Utility x2 640 | -7/Factory | Discovered new exit (range 16) 647 | -7/Factory | Entered Lower Caves 649 | -7/Lower Caves | Self-destructed Last Messages --------------- 00508_ ALERT: Suspicious activity at Scanalyzer F003. Dispatching Investigation squad. 00538_ Slammed into Y-54 Guardian. 00553_ Acquired Imp. Datajack. 00563_ Connecting with Scanalyzer... >>Insert(Hacking Suite) Scanning Hacking Suite... Ready to analyze. >>Scanalyze Scanning: Hacking Suite... Schematic downloaded. 00570_ Acquired Adv. Assault Cannon. 00580_ Slammed into U-05 Engineer. 00640_ EXIT=FOUND 00641_ K-01 Serf collects debris. 00647_ Slammed into Y-54 Guardian. LOCATION=UNKNOWN GOAL=ESCAPE 00648_ C-30 ARC bursts open, deploying its payload. 00648_ S-27 Virus unfolds itself. Map ----- +----------------------------------------------------+ | ?????????????????????????????????????????????????? | | ?????????????????????????????????????????????????? | | ?????????????????????????????????????????????????? | | ?????????????????????????????????????????????????? | | ?????????????????????????????????????????????????? | | ?????????????????????????????????????????????????? | | ?????????????????????????????????????????????????? | | ?????????????????????????????????????????????????? | | ?????????????????????????????????????????????????? | | ?????????????????????????????????????????????????? | | ?????????????????????????????????????????????????? | | ?????????????????????????????????????????????????? | | ?????????????????????????????????????????????????? | | ?????????????????????????????????????????????????? | | ?????????????????????????????????????????????????? | | ?????????????????????????????????????????????????? | | ?????????????????????????????????????????????????? | | ?????????????????????????????????????????????????? | | ?????????????????????????????????????????????????? | | ?????????????????????????????????????????????????? | | ?????????????????????????????????????????????????? | | ?????????????????????????????????????????????????? | | ?????????????????????????????????????????????????? | | ??????????????????????####????? ####?????????????? | | ?????????????????????## #### #?????????????? | | ????????????????????## r @ #?????????????? | | ???????????????### # # sss #??????????? | | ??????????????# #####???????????????????? | | ?????????????# r ##???????????????????????? | | ????????????# ##????????????????????????? | | ????????????#r ##??????????????????????????? | | ????????????#########????????????????????????????? | | ?????????????????????????????????????????????????? | | ?????????????????????????????????????????????????? | | ?????????????????????????????????????????????????? | | ?????????????????????????????????????????????????? | | ?????????????????????????????????????????????????? | | ?????????????????????????????????????????????????? | | ?????????????????????????????????????????????????? | | ?????????????????????????????????????????????????? | | ?????????????????????????????????????????????????? | | ?????????????????????????????????????????????????? | | ?????????????????????????????????????????????????? | | ?????????????????????????????????????????????????? | | ?????????????????????????????????????????????????? | | ?????????????????????????????????????????????????? | | ?????????????????????????????????????????????????? | | | | | | | +----------------------------------------------------+ Best States ------------- Heat Dissipation 34 Energy Generation 5 Energy Capacity 100 Matter Stores 300 Matter Capacity 300 Sight Range 20 Terrain Scan Density 110 Evasion (%) 50 Recoil Reduction 2 Offensive Hacking 10 Item Schematics ----------------- Hacking Suite | -7/Factory | Scanalyzed Robot Schematics ------------------ None Fabricated ------------ Nothing Alien Tech Used ----------------- None Achievements -------------- None Challenges ------------ None Game ------ Seed HeavyMatterFirepult Manual? 0 Play Time 00:08:52 Cumulative 128.6 hours Start 2021.06.27 @ 12:11:11 End 2021.06.27 @ 12:20:05 Sessions 1 Manual Loads 0 Difficulty Rogue Special Mode None Game No. 192 Rogue 192 Adventurer 0 Explorer 0 Win Type - Total 5 Types 4/0/0/1/0/0/0/0/0 Lore% 50 Gallery% 73 Achievement% 59 Wizard Run 0 Options --------- ASCII 0 Keyboard 0 Movement Numpad Keybinds 0 Fullscreen 1 Font 18/Terminus Map View 76x50 Tactical HUD 1 Map Filters NONE Filters NONE Steam 1 RUN: ab6763df-0f7d-4d2f-8150-5bbbe0920bf3